fUST/lending_fUST_20240104
["ID","MTS","AMOUNT","RATE_DAILY","PERIOD"]
[310073848,1704304239211,-4177.42015254,0.00035,4]
[310073850,1704304239220,-1454.45537407,0.00035,14]
[310073853,1704304239241,-155.4858064,0.00035,4]
[310073855,1704304239253,-154.78330338,0.00035,6]
[310073857,1704304239263,-490.0,0.00035452,2]
[310073859,1704304239273,-522.221602,0.00035616,120]
[310073861,1704304239282,-540.11528699,0.000359,4]
[310073863,1704304239292,-250.0,0.00037085,15]
[310073865,1704304239302,-831.33448667,0.00038,120]
[310073868,1704304239312,-150.77383924,0.00038112,4]
[310073880,1704304239424,-500.0,0.00038356,2]
[310073882,1704304239436,-540.0,0.0003874,2]
[310073884,1704304239445,-150.77383924,0.0003889,2]
[310073886,1704304239455,-333.45907894,0.00039,2]
[310073888,1704304239464,-6068.4601453,0.00039039,2]
[310073890,1704304239473,-9676.71702585,0.00039055,2]
[310073892,1704304239485,-163.030936,0.0003963,2]
[310073894,1704304239494,-1437.16971841,0.00039716,2]
[310073896,1704304239504,-1471.85848592,0.00039716,2]
[310073898,1704304239513,-325.0406749,0.00039716,2]
[310073900,1704304239522,-4031.97114424,0.0003999,4]
[310073902,1704304239532,-1278.30335464,0.0004,4]
[310073904,1704304239541,-154.84515485,0.0004,4]
[310073906,1704304239550,-638.89951879,0.00040496,2]
[310073908,1704304239559,-4000.0,0.000405,4]
[310073910,1704304239568,-350.0,0.00040794,30]
[310073912,1704304239578,-657.93565851,0.00040897,4]
[310073914,1704304239587,-2855.53248198,0.00040899,4]
[310073916,1704304239595,-485.26691236,0.00040911,4]
[310073918,1704304239605,-970.19895941,0.00040911,4]
[310073920,1704304239613,-376.73592617,0.00040911,4]
[310073922,1704304239622,-41083.94909167,0.00040919,2]
[310073924,1704304239631,-25271.6280414,0.00041096,15]
[310073926,1704304239641,-522.221602,0.00041553,120]
[310073928,1704304239650,-200.0,0.00041973,2]
[310073930,1704304239659,-200.0,0.00041985,2]
[310073932,1704304239673,-200.0,0.00041995,2]
[310073933,1704304239682,-2502.35131199,0.00042,5]
[310073934,1704304239691,-1452.51193783,0.00042,10]
[310073936,1704304239700,-590.0,0.00042192,4]
[310073938,1704304239710,-174.124156,0.0004272,2]
[310073940,1704304239720,-1496.90870613,0.0004274,4]
[310073942,1704304239730,-2066.6296087,0.00042743,4]
[310073945,1704304239740,-3421.9420034,0.00042745,120]
[310073946,1704304239750,-683.05428955,0.00042748,4]
[310073949,1704304239760,-13904.99350998,0.0004275,5]
[310073951,1704304239770,-6371.99871131,0.00042798,2]
[310073953,1704304239779,-8000.0,0.000428,34]
[310073955,1704304239789,-223.55,0.0004297,60]
[310073956,1704304239798,-150.0,0.0004297,60]
[310073958,1704304239807,-150.0,0.0004298,60]
[310073960,1704304239817,-150.0,0.0004298,60]
[310073962,1704304239826,-150.0,0.0004299,60]
[310073964,1704304239835,-150.0,0.0004299,60]
[310073966,1704304239847,-4808.08580524,0.00043,7]
[310073969,1704304239857,-26965.31733102,0.00043,15]
[310073970,1704304239867,-219.0,0.00043,90]
[310073972,1704304239876,-219.0,0.00043014,90]
[310073974,1704304239885,-150.77383924,0.00043211,2]
[310073976,1704304239895,-250.11570644,0.00043211,2]
[310073978,1704304239905,-180.56266,0.0004352,30]
[310073980,1704304239913,-180.56266,0.0004352,30]
[310073982,1704304239923,-180.56266,0.0004352,30]
[310073984,1704304239932,-151.64663113,0.00043551,14]
[310073986,1704304239941,-151.64663113,0.00043551,14]
[310073988,1704304239950,-151.64663113,0.00043551,14]
[310073990,1704304239959,-151.64663113,0.00043551,14]
[310073993,1704304239968,-151.64663113,0.00043551,14]
[310073995,1704304239978,-151.64663113,0.00043551,14]
[310073997,1704304239988,-151.64663113,0.00043551,14]
[310073999,1704304239997,-151.64663113,0.00043551,14]
[310074001,1704304240007,-151.64663113,0.00043551,14]
[310074003,1704304240015,-151.64663113,0.00043551,14]
[310074005,1704304240027,-151.64663113,0.00043551,14]
[310074007,1704304240036,-151.64663113,0.00043551,14]
[310074009,1704304240045,-151.64663113,0.00043551,14]
[310074011,1704304240054,-151.64663113,0.00043551,14]
[310074013,1704304240063,-151.64663113,0.00043551,14]
[310074015,1704304240072,-151.64663113,0.00043551,14]
[310074017,1704304240081,-151.64663113,0.00043551,14]
[310074019,1704304240090,-151.64663113,0.00043551,14]
[310074021,1704304240099,-151.64663113,0.00043551,14]
[310074023,1704304240108,-151.64663113,0.00043551,14]
[310074024,1704304240117,-151.64663113,0.00043551,14]
[310074026,1704304240126,-151.64663113,0.00043551,14]
[310074029,1704304240137,-151.64663113,0.00043551,14]
[310074030,1704304240146,-151.64663113,0.00043551,14]
[310074032,1704304240155,-151.64663113,0.00043551,14]
[310074034,1704304240164,-151.64663113,0.00043551,14]
[310074036,1704304240174,-151.64663138,0.00043551,14]
[310074038,1704304240183,-5000.0,0.00043744,15]
[310074040,1704304240193,-250.0,0.00043835,10]
[310074042,1704304240203,-550.0,0.00043835,7]
[310074044,1704304240212,-777.0,0.00043875,2]
[310074046,1704304240222,-301.54767848,0.00043937,4]
[310074048,1704304240233,-8156.34507585,0.00044,90]
[310074050,1704304240243,-1095.96266388,0.00044096,4]
[310074052,1704304240253,-550.0,0.00044109,7]
[310074054,1704304240262,-289.088,0.00044224,2]
[310074056,1704304240272,-13103.41009486,0.00044349,4]
[310074058,1704304240281,-567.69104784,0.00044383,7]
[310074060,1704304240290,-1573.55459932,0.0004452,14]
[310074062,1704304240300,-603.09535696,0.00044676,7]
[310074064,1704304240309,-278.72399994,0.000447,30]
[310074066,1704304240319,-2129.29306746,0.00044797,4]
[310074068,1704304240328,-404.00876748,0.00044797,4]
[310074070,1704304240337,-3370.17064279,0.00044797,4]
[310074072,1704304240346,-169.65757293,0.00044797,4]
[310074074,1704304240355,-218.21355464,0.00044797,4]
[310074076,1704304240365,-309.61300308,0.00044797,4]
[310074078,1704304240374,-355.34821973,0.00044797,4]
[310074080,1704304240383,-2722.30747684,0.00044797,4]
[310074082,1704304240393,-266.72372798,0.00044797,4]
[310074084,1704304240401,-221.73638995,0.00044797,4]
[310074086,1704304240411,-154.78330338,0.00044797,2]
[310074088,1704304240420,-622.87640777,0.00044797,2]
[310074090,1704304240429,-785.85096495,0.00044797,4]
[310074092,1704304240439,-3850.06527677,0.00044797,4]
[310074094,1704304240448,-1005.76328745,0.00044797,4]
[310074096,1704304240458,-226.860578,0.00044798,4]
[310074098,1704304240467,-1145.00728631,0.00044798,4]
[310074100,1704304240476,-216.85,0.00044798,7]
[310074102,1704304240485,-216.85,0.00044798,7]
[310074104,1704304240495,-216.85,0.00044798,7]
[310074105,1704304240504,-216.85,0.00044798,7]
[310074107,1704304240513,-216.85,0.00044798,7]
[310074109,1704304240522,-216.85,0.00044798,7]
[310074111,1704304240532,-216.85,0.00044798,7]
[310074113,1704304240543,-216.85,0.00044798,7]
[310074115,1704304240552,-216.85,0.00044798,7]
[310074117,1704304240563,-216.85,0.00044798,7]
[310074119,1704304240572,-17841.27390521,0.00044798,4]
[310074121,1704304240581,-486.11450001,0.00044798,2]
[310074123,1704304240590,-500.0,0.00044798,2]
[310074125,1704304240599,-368.03712276,0.00044798,2]
[310074127,1704304240609,-239.18424337,0.00044799,3]
[310074129,1704304240618,-3074.0223268,0.00044799,10]
[310074131,1704304240627,-43801.766534,0.00044799,30]
[310074134,1704304240650,-79197.80366023,0.00044799,30]
[310074136,1704304240659,-500.0,0.00044799,4]
[310074138,1704304240669,-213.15036784,0.00044799,4]
[310074140,1704304240678,-469.44476168,0.00044799,4]
[310074142,1704304240687,-178.28759195,0.00044799,4]
[310074144,1704304240697,-421.19402997,0.00044799,4]
[310074146,1704304240706,-280.4275765,0.00044799,4]
[310074148,1704304240715,-500.0,0.00044799,4]
[310074156,1704304240782,-223.10257808,0.00044799,4]
[310074158,1704304240791,-441.46209322,0.00044799,4]
[310074160,1704304240800,-500.0,0.00044799,4]
[310074162,1704304240809,-225.50746945,0.00044799,4]
[310074164,1704304240818,-194.02382148,0.00044799,4]
[310074166,1704304240826,-173.50595536,0.00044799,4]
[310074167,1704304240835,-291.66870001,0.00044799,7]
[310074169,1704304240845,-651.02784207,0.00044799,7]
[310074171,1704304240855,-172900.80744689,0.000448,2]
[310074232,1704304241421,-2116.63115803,0.000448,2]
[310074234,1704304241433,-9385.6224959,0.000448,2]
[310074394,1704304242934,-3128.7,0.00033707,3]
[310074396,1704304242943,-7981.2999999,0.000448,2]
[310074494,1704304243806,-8014.30043547,0.000448,2]
[310074758,1704304246550,-651.61005074,0.00039716,2]
[310074760,1704304246559,-51415.98578419,0.000448,2]
[310074780,1704304246744,-1707.43595623,0.000448,2]
[310074782,1704304246756,-1260.09265858,0.000448,2]
[310078162,1704304423299,1992.50621571,0.0002024,2]
[310078172,1704304467228,3085.61180914,0.00021,7]
[310078173,1704304468981,851.6572496,0.00021,2]
[310078174,1704304469043,193.68563271,0.00021,2]
[310078191,1704304991639,174.591422,0.00021943,2]
[310078192,1704305053153,166.666666,0.00021918,2]
[310078193,1704305053549,166.666666,0.00022497,2]
[310078195,1704305200550,5975.66580939,0.00022497,2]
[310078196,1704305206520,4977.85141022,0.00022497,2]
[310078197,1704305212147,7544.16505711,0.00020914,2]
[310078199,1704305232012,4039.96554882,0.00020914,2]
[310078200,1704305232202,4412.38587704,0.00022497,2]
[310078201,1704305250201,3194.58839338,0.00022497,2]
[310078202,1704305290598,169.9529526,0.0002259,2]
[310078203,1704305305008,-633.95978408,0.00023055,2]
[310078204,1704305305050,-633.95978408,0.00023055,2]
[310078205,1704305305109,-274.35831975,0.00023055,2]
[310078206,1704305330236,-586.04748878,0.00023052,2]
[310078207,1704305330265,-78.75785306,0.00023052,4]
[310078208,1704305330300,-76.05636987,0.00023052,4]
[310078209,1704305330327,-154.81422293,0.00023053,2]
[310078210,1704305330355,-433.93474904,0.00023053,2]
[310078211,1704305330390,-171.830946,0.00023053,2]
[310078212,1704305330416,-242.17543569,0.00023054,2]
[310078213,1704305330550,-250.79896015,0.00023054,2]
[310078214,1704305351718,154.81422293,0.00020914,4]
[310078215,1704305354972,-328.2954028,0.0002305,2]
[310078216,1704305354999,-376.39825955,0.0002305,2]
[310078217,1704305355060,-704.69366235,0.0002305,2]
[310078218,1704305355136,-204.24633139,0.0002305,2]
[310078219,1704305357112,-1346.34663899,0.0002305,2]
[310078220,1704305357135,-154.81422293,0.00023051,2]
[310078221,1704305357158,-3732.74533379,0.00023051,2]
[310078222,1704305357181,-1019.46116191,0.00023051,2]
[310078223,1704305357201,-2553.74210165,0.00023054,2]
[310078224,1704305357226,-14313.78145182,0.00023055,2]
[310078225,1704305357246,-20831.85137104,0.00023057,2]
[310078226,1704305357268,-166.666666,0.00023076,2]
[310078227,1704305357289,-225.3382533,0.00023188,2]
[310078228,1704305357310,-2097.15281013,0.00023237,2]
[310078229,1704305357416,-230.12748224,0.00023237,2]
[310078230,1704305357448,-873.72208253,0.00023237,2]
[310078231,1704305357471,-1572.81659635,0.00023237,2]
[310078232,1704305357494,-481.19864235,0.00023237,2]
[310078233,1704305357516,-195.15400126,0.00023237,2]
[310078234,1704305357538,-7853.18847264,0.00023237,2]
[310078235,1704305357561,-4987.83277804,0.00023237,2]
[310078236,1704305357584,-2067.23046819,0.00023237,2]
[310078237,1704305357605,-1051.21541603,0.00023237,7]
[310078238,1704305357626,-276.30521429,0.00023237,2]
[310078239,1704305357652,-154.81422293,0.00023237,2]
[310078240,1704305357673,-243.09147667,0.00023237,2]
[310078241,1704305357694,-384.15147063,0.00023237,2]
[310078242,1704305357714,-394.23430496,0.00023237,2]
[310078243,1704305357734,-982.40275751,0.00023238,2]
[310078244,1704305357756,-22033.95346925,0.00023239,2]
[310078245,1704305365099,-2821.61,0.00023229,3]
[310078246,1704305365120,-30140.03795533,0.00023239,2]
[310078247,1704305365142,-24900.0,0.0002324,2]
[310078248,1704305365165,-166.666666,0.00023655,2]
[310078249,1704305365188,-3081.38114691,0.0002399,2]
[310078250,1704305365210,-166.666666,0.00024233,2]
[310078251,1704305365232,-166.666666,0.00024812,2]
[310078252,1704305365252,-996.76856584,0.00025,2]
[310078253,1704305365272,-701.97831771,0.00025,10]
[310078254,1704305365292,-16245.1924149,0.00025,2]
[310078255,1704305365313,-4703.58483279,0.00025,2]
[310078256,1704305365333,-7882.48696374,0.00025297,2]
[310078257,1704305365354,-200.0,0.000255,7]
[310078258,1704305365375,-50.94710737,0.00028,2]
[310078259,1704305369108,-730.96128778,0.00028,2]
[310078260,1704305369132,-280.0,0.00028049,15]
[310078261,1704305369152,-1464.41511106,0.00028424,2]
[310078262,1704305369172,-268.73332704,0.00028424,2]
[310078263,1704305369195,-517.43681799,0.000295,30]
[310078264,1704305369219,-193.27845609,0.00029599,2]
[310078265,1704305369238,-11436.34099521,0.0002979,7]
[310078266,1704305380043,-736.96633547,0.00027998,2]
[310078267,1704305380187,-736.96633547,0.00027998,2]
[310078272,1704305405055,-766.44498889,0.00027998,2]
[310078273,1704305405090,-765.06861028,0.00027998,2]
[310078340,1704305432702,-727.29906368,0.00027998,2]
[310078342,1704305432712,-154.81422293,0.00027999,4]
[310078344,1704305432722,-1083.49842303,0.00027999,7]
[310078346,1704305432732,-960.96602465,0.00027999,2]
[310078348,1704305432743,-2828.56042873,0.00029789,2]
[310078350,1704305432753,-4240.028704,0.0002979,7]
[310078352,1704305432763,-1959.45,0.0003099,3]
[310078354,1704305432772,-1632.88,0.0003099,3]
[310078355,1704305432782,-69501.0,0.00031,2]
[310078357,1704305432792,-666.4896426,0.00031999,5]
[310078359,1704305432802,-2924.38985001,0.00032,10]
[310078361,1704305432811,-4921.43746771,0.00032,30]
[310078363,1704305432822,-183.74133472,0.00032,50]
[310078364,1704305432831,-7711.90777405,0.00032073,2]
[310078464,1704305438874,-154.81422293,0.00027997,4]
[310078466,1704305438884,-20831.85137104,0.00029789,2]
[310078469,1704305438893,-2777.46895919,0.00030998,4]
[310078471,1704305438903,-17188.09222595,0.00032073,2]
[310078473,1704305438912,-2344.62606701,0.00032715,4]
[310078475,1704305438921,-246.06986126,0.00033,4]
[310078477,1704305438931,-173.0,0.00034,2]
[310078478,1704305438940,-4657.66153763,0.00034106,2]
[310078480,1704305438949,-1000.0,0.00034107,7]
[310078482,1704305438958,-638.89951879,0.00034108,2]
[310078485,1704305438969,-163.030936,0.00034521,2]
[310078486,1704305438978,-3491.37877549,0.000349,2]
[310078488,1704305438987,-250.0,0.00035,7]
[310078490,1704305438996,-154.79876161,0.00035,6]
[310078492,1704305439006,-590.27084275,0.00035197,2]
[310078494,1704305439015,-1454.45537407,0.00035198,14]
[310078496,1704305439024,-250.0,0.00035199,15]
[310078499,1704305439034,-4177.42015254,0.0003545,4]
[310078510,1704305439137,-3538.7366841,0.00035451,2]
[310078512,1704305439148,-571.0,0.00035452,2]
[310078515,1704305439157,-571.673645,0.00035616,120]
[310078517,1704305439167,-683.05428955,0.00036098,4]
[310078519,1704305439177,-540.11528699,0.00036989,4]
[310078521,1704305439186,-1000.0,0.00037,37]
[310078523,1704305439195,-376.73592617,0.00037898,4]
[310078525,1704305439205,-2855.53248198,0.00037898,4]
[310078526,1704305439215,-173.78177454,0.00037898,4]
[310078529,1704305439228,-171.34326887,0.00037898,4]
[310078531,1704305439238,-329.64025571,0.00037898,4]
[310078533,1704305439247,-904.16812997,0.00037898,4]
[310078534,1704305439255,-963.55633409,0.00037898,4]
[310078536,1704305439265,-5711.61620623,0.00037898,4]
[310078539,1704305439274,-416.1476151,0.00037898,2]
[310078540,1704305439283,-2173.20359129,0.00037898,4]
[310078542,1704305439292,-1073.8798687,0.00037898,3]
[310078544,1704305439301,-155.4858064,0.00037899,4]
[310078546,1704305439311,-500.0,0.00037899,2]
[310078548,1704305439320,-486.11450001,0.00037899,2]
[310078550,1704305439329,-368.03712276,0.00037899,2]
[310078552,1704305439338,-276000.0,0.000379,2]
[310078554,1704305439348,-1068.22,0.0003793,2]
[310078556,1704305439357,-150.80395486,0.00037997,4]
[310078558,1704305439367,-1496.90870613,0.00037998,4]
[310078561,1704305439376,-3421.9420034,0.00037998,120]
[310078562,1704305439386,-2066.6296087,0.00037998,4]
[310078564,1704305439396,-255.08,0.00037999,2]
[310078567,1704305439407,-255.08,0.00037999,2]
[310078569,1704305439417,-255.08,0.00037999,2]
[310078571,1704305439426,-255.08,0.00037999,2]
[310078573,1704305439435,-255.08,0.00037999,2]
[310078575,1704305439445,-255.08,0.00037999,2]
[310078577,1704305439454,-505.3227688,0.00037999,4]
[310078579,1704305439464,-500.0,0.00037999,4]
[310078580,1704305439473,-225.50746945,0.00037999,4]
[310078583,1704305439483,-500.0,0.00037999,4]
[310078585,1704305439492,-500.0,0.00037999,4]
[310078587,1704305439502,-407.17418931,0.00037999,4]
[310078588,1704305439511,-500.0,0.00037999,4]
[310078590,1704305439521,-247.83570673,0.00037999,4]
[310078592,1704305439530,-291.66870001,0.00037999,7]
[310078594,1704305439539,-651.02784207,0.00037999,7]
[310078596,1704305439548,-376.05367075,0.00037999,4]
[310078598,1704305439557,-239.18424337,0.00038,3]
[310078601,1704305439567,-3308.23489913,0.00038,3]
[310078603,1704305439577,-40303.74264026,0.00038,10]
[310078605,1704305439587,-15254.21066762,0.00038,30]
[310078610,1704305439635,-107745.35952661,0.00038,30]
[310078612,1704305439645,-831.33448667,0.00038,120]
[310078614,1704305439654,-500.0,0.00038356,2]
[310078616,1704305439663,-350.0,0.00038719,30]
[310078618,1704305439673,-621.0,0.0003874,2]
[310078620,1704305439682,-150.80395486,0.00038772,2]
[310078622,1704305439692,-1011.88536426,0.00039,10]
[310078624,1704305439701,-2032.27213816,0.00039,2]
[310078626,1704305439711,-333.45907894,0.00039,2]
[310078628,1704305439720,-1000.0,0.00039,39]
[310078630,1704305439729,-252.98013591,0.00039,4]
[310078632,1704305439739,-8969.84506298,0.00039112,2]
[310078634,1704305439749,-223.55,0.00039622,60]
[310078636,1704305439758,-163.030936,0.0003963,2]
[310078638,1704305439768,-150.0,0.00039632,60]
[310078640,1704305439777,-150.0,0.00039642,60]
[310078642,1704305439786,-332.7188672,0.00039685,2]
[310078644,1704305439796,-1005.41451756,0.00039685,2]
[310078646,1704305439805,-156.39144232,0.00039695,2]
[310078648,1704305439814,-755.46586731,0.00039705,2]
[310078650,1704305439823,-1697.88616159,0.00039725,2]
[310078652,1704305439833,-150.0,0.0003997,60]
[310078654,1704305439842,-150.0,0.0003998,60]
[310078656,1704305439852,-4031.97114424,0.0003999,4]
[310078658,1704305439861,-150.0,0.0003999,60]
[310078660,1704305439870,-16547.76709135,0.0004,120]
[310078662,1704305439880,-1278.30335464,0.0004,4]
[310078664,1704305439890,-154.84515485,0.0004,4]
[310078666,1704305439899,-4000.0,0.000405,4]
[310078668,1704305439910,-41083.94909167,0.00040919,2]
[310078670,1704305439919,-4478.26085689,0.00041,10]
[310078672,1704305439929,-1000.0,0.00041,41]
[310078674,1704305439938,-2502.35131199,0.00041027,5]
[310078676,1704305439947,-25271.6280414,0.00041096,15]
[310078678,1704305439956,-571.673645,0.00041553,120]
[310078680,1704305439966,-200.0,0.0004196,2]
[310078682,1704305439975,-200.0,0.00041962,2]
[310078684,1704305439985,-200.0,0.00041988,2]
[310078686,1704305439995,-2190.10650715,0.00042,2]
[310078688,1704305440004,-14593.61731409,0.00042,2]
[310078690,1704305440013,-1455.86715968,0.00042,10]
[310078692,1704305440022,-671.0,0.00042192,4]
[310078694,1704305440032,-8320.77895511,0.0004256,5]
[310078697,1704305440045,-3326.16145588,0.0004256,5]
[310078880,1704305441862,-1260.53731352,0.00037888,3]
[310078888,1704305441926,-375.04189323,0.00037888,3]
[310078890,1704305441938,-117.04079325,0.00037888,3]
[310078892,1704305441947,-2258.05309899,0.0004256,5]
[310078894,1704305441957,-200.0,0.00042591,30]
[310078896,1704305441967,-289.0,0.00042591,30]
[310078898,1704305441976,-6371.99871131,0.000427,2]
[310078900,1704305441985,-1000.0,0.00042739,14]
[310078902,1704305441994,-1000.0,0.00042739,14]
[310078904,1704305442004,-616.50100192,0.00042739,14]
[310078906,1704305442013,-8000.0,0.000428,34]
[310078908,1704305442023,-5024.13774069,0.00043,8]
[310078910,1704305442033,-1055.85364277,0.00043,7]
[310078912,1704305442042,-4808.08580524,0.00043,7]
[310078915,1704305442052,-1000.0,0.00043,43]
[310078916,1704305442062,-26965.31733003,0.00043,15]
[310078919,1704305442071,-150.80395486,0.0004308,2]
[310078921,1704305442080,-250.16566464,0.0004308,2]
[310078923,1704305442090,-180.56266,0.0004352,30]
[310078925,1704305442099,-151.64663113,0.00043551,14]
[310078927,1704305442108,-151.64663113,0.00043551,14]
[310078929,1704305442117,-151.64663113,0.00043551,14]
[310078931,1704305442126,-151.64663113,0.00043551,14]
[310078932,1704305442135,-151.64663113,0.00043551,14]
[310078935,1704305442144,-151.64663113,0.00043551,14]
[310078937,1704305442154,-151.64663113,0.00043551,14]
[310078938,1704305442163,-151.64663113,0.00043551,14]
[310078940,1704305442172,-151.64663113,0.00043551,14]
[310078942,1704305442182,-151.64663113,0.00043551,14]
[310078944,1704305442191,-151.64663113,0.00043551,14]
[310078946,1704305442201,-151.64663113,0.00043551,14]
[310078948,1704305442213,-151.64663113,0.00043551,14]
[310078956,1704305442278,-151.64663113,0.00043551,14]
[310078959,1704305442295,-151.64663113,0.00043551,14]
[310078961,1704305442304,-151.64663113,0.00043551,14]
[310078963,1704305442313,-151.64663113,0.00043551,14]
[310078965,1704305442322,-151.64663113,0.00043551,14]
[310078967,1704305442331,-151.64663113,0.00043551,14]
[310078969,1704305442340,-151.64663113,0.00043551,14]
[310078971,1704305442349,-151.64663113,0.00043551,14]
[310078973,1704305442358,-151.64663113,0.00043551,14]
[310078974,1704305442367,-151.64663113,0.00043551,14]
[310078977,1704305442376,-151.64663113,0.00043551,14]
[310078979,1704305442386,-151.64663113,0.00043551,14]
[310078980,1704305442395,-151.64663113,0.00043551,14]
[310078983,1704305442405,-151.64663138,0.00043551,14]
[310078984,1704305442414,-777.0,0.0004368,2]
[310078987,1704305442423,-5000.0,0.00043722,15]
[310078989,1704305442433,-5000.0,0.00043768,15]
[310078991,1704305442442,-5000.0,0.00043768,15]
[310078993,1704305442451,-301.60790972,0.00043805,4]
[310078995,1704305442460,-250.0,0.00043835,10]
[310078996,1704305442471,-550.0,0.00043835,7]
[310078998,1704305442480,-1000.0,0.00043979,15]
[310079001,1704305442490,-4763.35354174,0.00044,90]
[310079125,1704305443634,-1557.57101773,0.00044,90]
[310079420,1704305446675,-1835.42051638,0.00044,90]
[310079422,1704305446684,-550.0,0.00044109,7]
[310079424,1704305446693,-1573.39747954,0.0004413,14]
[310079425,1704305446702,-186.597,0.00044224,2]
[310079427,1704305446711,-153.0,0.00044281,2]
[310079430,1704305446722,-153.0,0.00044281,2]
[310079432,1704305446731,-153.0,0.00044281,2]
[310079433,1704305446740,-153.0,0.00044281,2]
[310079435,1704305446750,-567.69104784,0.00044383,7]
[310079437,1704305446759,-3797.89271338,0.000444,7]
[310079440,1704305446771,-1079.28269756,0.000444,7]
[310079442,1704305446780,-2525.84,0.00044498,4]
[310079445,1704305446789,-603.21581943,0.00044541,7]
[310079448,1704305446798,-3692.48031234,0.00044546,4]
[310079451,1704305446810,-9410.92978252,0.00044546,4]
[310079454,1704305446819,-555.27939761,0.00044548,2]
[310079456,1704305446828,-180.56266,0.00044608,30]
[310079458,1704305446837,-3074.0223268,0.00044698,10]
[310079460,1704305446846,-278.72399994,0.000447,30]
[310079462,1704305446856,-196.82685588,0.000447,14]
[310079464,1704305446865,-7219.96520272,0.00044797,12]
[310079466,1704305446874,-539.96454712,0.00044799,10]
[310079468,1704305446883,-609.01152944,0.000448,2]
[310079470,1704305446892,-322.3814999,0.000448,3]
[310079472,1704305446902,-222.23814354,0.000448,4]
[310079474,1704305446910,-5000.0,0.000448,20]
[310079476,1704305446920,-344.04094036,0.000448,4]
[310079478,1704305446930,-161.26693346,0.000448,2]
[310079480,1704305446938,-14593.82605607,0.000448,30]
[310083341,1704306537387,-154.81422293,0.00023205,2]
[310083343,1704306537414,-154.81422293,0.00023205,2]
[310083346,1704306537537,-166.666666,0.00023206,2]
[310083347,1704306537565,-166.666666,0.00023839,2]
[310083348,1704306537593,-59.33785208,0.00024472,2]
[310083349,1704306537625,-107.32881392,0.00024472,2]
[310083350,1704306537653,-154.81422293,0.00024603,2]
[310083351,1704306537680,-440.15659309,0.00024603,2]
[310083352,1704306545130,-154.81422293,0.00023204,4]
[310083353,1704306545162,-343.43501932,0.00023204,2]
[310083354,1704306545185,-2090.15137702,0.00023838,2]
[310083355,1704306545207,-3292.5887407,0.00024603,2]
[310083356,1704306545229,-413.50609139,0.00024604,2]
[310083357,1704306545251,-399.38718748,0.00024604,2]
[310083358,1704306545272,-7932.20562033,0.00024604,2]
[310083359,1704306545293,-520.2185,0.00024605,2]
[310083360,1704306545314,-2698.71304933,0.00024605,5]
[310083361,1704306545335,-2508.36986414,0.00024606,2]
[310083362,1704306545357,-2631.68489228,0.00024606,2]
[310083363,1704306545379,-154.81422293,0.00024606,2]
[310083364,1704306545409,-154.81422293,0.00024607,2]
[310083365,1704306545431,-264.48060354,0.00024607,2]
[310083366,1704306545454,-154.81422293,0.00024607,2]
[310083367,1704306545476,-166.32510416,0.00024607,2]
[310083368,1704306545499,-20831.85137104,0.00024607,2]
[310083369,1704306545521,-2704.45519417,0.00024608,2]
[310083370,1704306545542,-1584.80241164,0.00024608,2]
[310083371,1704306545563,-166.16362772,0.00024608,2]
[310083372,1704306545585,-590.516407,0.00024608,2]
[310083373,1704306545607,-3287.68,0.00024609,3]
[310083374,1704306545629,-24900.0,0.00024619,2]
[310083375,1704306545653,-4703.58483279,0.00025,2]
[310083376,1704306545675,-166.666666,0.00025104,2]
[310083377,1704306545695,-612.96786415,0.00025537,2]
[310083378,1704306545716,-171.9982816,0.00025538,2]
[310083379,1704306545736,-174.5977832,0.0002568,2]
[310083380,1704306545757,-166.666666,0.00025737,2]
[310083381,1704306545778,-166.666666,0.0002637,2]
[310083382,1704306545799,-973.72829112,0.0002798,2]
[310083383,1704306545820,-12199.71031571,0.00027997,2]
[310083384,1704306545841,-1970.65508669,0.00027998,2]
[310083385,1704306545863,-200.0,0.00028215,15]
[310083386,1704306545887,-1320.81396188,0.00029799,2]
[310083387,1704306545910,-496.05871971,0.000298,5]
[310083388,1704306545932,-2097.15281013,0.00029998,2]
[310083389,1704306545954,-2067.23046819,0.00029998,2]